Cogmind - Beta 15 X1 @@@ ROGUE MODE // 2024.11.10 @ 10:54:18 Player: arkn Result: Destroyed by Alpha 7 with Multirail Performance ------------- Evolutions (7) 3500 Regions Visited (17) 3400 Robots Destroyed (117) 585 Value Destroyed (4135) 4135 Prototype IDs (20) 400 Alien Tech Used (0) 0 Bonus (5067) 5067 TOTAL SCORE: 17087 Bonus ------- High Alert Combat Kills 478 Follower Combat Kills 1248 Entered Garrisons 400 Used RIF Installer 500 Scanned by Researcher 500 Acquired SGEMP 2000 Friendly Fire -59 Cogmind --------- Core Integrity 0/1300 Matter 39/300 Energy 89/100 System Corruption 10% Temperature Cool (0) Movement Core (50) Location -3/Testing Parts ------- > --- POWER (2) -------- (None) > --- PROPULSION (6) --- (None) > --- UTILITY (7) ------ (None) > --- WEAPON (6) ------- Plasma Lance > --- INVENTORY (5) ---- Myomer Leg Myomer Leg Myomer Leg SGEMP Prototype Peak State ------------ > --- POWER ------------ Light Quantum Reactor > --- PROPULSION ------- Improved VTOL Module Improved VTOL Module Flightbrick > --- UTILITY ---------- Improved Cooling System Large Storage Unit Weight Redist. System Structural Scanner Advanced Visual Processing Unit Improved Signal Interpreter Hardened Light Armor Plating > --- WEAPON ----------- Heavy Battle Rifle Heavy Battle Rifle > --- INVENTORY -------- Improved VTOL Module Improved VTOL Module Phase Shifter Improved Phase Shifter Focal Shield Advanced Beam Rifle Improved Spread Laser Heavy Beamcaster Heavy Beamcaster Bore Cannon Bore Cannon Bore Cannon Heavy Rocket Launcher Multitool Heavy Flail [Rating: 84] Favorites ----------- Power Ion Engine Engine Ion Engine Power Core Light Nuclear Core Reactor Antimatter Reactor Propulsion Improved VTOL Module Treads Light Treads Leg Carbon-fiber Leg Wheel Subdweller Monowheel Flight Unit Improved VTOL Module Utility Hardened Light Armor Plating Device Structural Scanner Storage Large Storage Unit Processor Advanced Visual Processing Unit Protection Hardened Light Armor Plating Weapon Heavy Battle Rifle Energy Gun Advanced Beam Rifle Energy Cannon Subdweller Beam Cannon Ballistic Gun Heavy Battle Rifle Ballistic Cannon Battle Cannon Launcher Heavy Rocket Launcher Special Weapon Multitool Impact Weapon Heavy Flail Slashing Weapon Mining Claw Piercing Weapon Plasma Lance Build | -11 -10 -10 -8 -7 -7 -7 -7 -7 -7 -7 -6 -6 -6 -5 -4 -3 -3 ------- Run | Yrd Mat Sub Mat Fac Was Fac Gar Fac Gar Fac Fac Was Fac Fac Fac Res Tes Slots Evolved 14 | . . . 4 2 . . . . . . 2 . . 2 2 2 . Power 1 | . . . . . . . . . . . . . . . . 1 . Propulsion 4 | . . . 2 2 . . . . . . . . . . . . . Utility 5 | . . . 2 . . . . . . . . . . 2 . 1 . Weapon 4 | . . . . . . . . . . . 2 . . . 2 . . Parts Attached 99 | 1 7 19 18 4 1 . 4 . 7 3 4 . . 9 20 . 2 Power 11 | . . 3 1 . 1 . 1 . 3 . . . . 1 1 . . Engine 7 | . . 3 1 . . . . . 1 . . . . 1 1 . . Core 1 | . . . . . . . . . 1 . . . . . . . . Reactor 3 | . . . . . 1 . 1 . 1 . . . . . . . . Propulsion 28 | . 4 5 1 2 . . . . 1 . 2 . . 5 7 . 1 Treads 2 | . 2 . . . . . . . . . . . . . . . . Leg 12 | . 2 . . . . . . . . . . . . 5 4 . 1 Wheel 5 | . . 5 . . . . . . . . . . . . . . . Hover . | . . . . . . . . . . . . . . . . . . Flight 9 | . . . 1 2 . . . . 1 . 2 . . . 3 . . Utility 28 | 1 2 2 8 1 . . 1 . . 2 1 . . 1 9 . . Device 13 | 1 . . 4 . . . 1 . . 2 1 . . 1 3 . . Storage 2 | . 1 . 1 . . . . . . . . . . . . . . Processor 2 | . . . 1 1 . . . . . . . . . . . . . Hackware . | . . . . . . . . . . . . . . . . . . Protection 11 | . 1 2 2 . . . . . . . . . . . 6 . . Artifact . | . . . . . . . . . . . . . . . . . . Weapon 32 | . 1 9 8 1 . . 2 . 3 1 1 . . 2 3 . 1 Energy Gun 6 | . . 2 3 . . . . . 1 . . . . . . . . Energy Cannon 1 | . . 1 . . . . . . . . . . . . . . . Ballistic Gun 10 | . 1 3 2 . . . 2 . . . . . . 1 1 . . Ballistic Cannon 8 | . . 1 1 . . . . . 2 1 . . . 1 2 . . Launcher 2 | . . 1 1 . . . . . . . . . . . . . . Special Weapon 1 | . . . 1 . . . . . . . . . . . . . . Impact Weapon 2 | . . . . 1 . . . . . . 1 . . . . . . Slashing Weapon 1 | . . 1 . . . . . . . . . . . . . . . Piercing Weapon 1 | . . . . . . . . . . . . . . . . . 1 Special Melee Weapon . | . . . . . . . . . . . . . . . . . . Unidentified Prototypes 9 | . . . 4 1 . . . . . . 1 . . 1 1 . 1 Corrupted Parts 1 | . . . . . . . . . . . . . . 1 . . . System Corruption 10 | . . . . . . . . . . . . . . 10 . . . Parts Lost 56 | . . 6 5 . . . 1 . 6 1 5 . . 5 20 . 7 Power 6 | . . 1 . . . . 1 . 1 . 1 . . 1 1 . . Propulsion 19 | . . 2 2 . . . . . 1 . 2 . . 3 5 . 4 Utility 17 | . . 1 1 . . . . . 2 1 2 . . . 7 . 3 Weapon 14 | . . 2 2 . . . . . 2 . . . . 1 7 . . Highest Loss Streak 7 | . . 2 2 . . . 1 . 4 1 5 . . 2 5 . 7 To Critical Strikes . | . . . . . . . . . . . . . . . . . . Average Backups 9 | 6 7 9 7 9 14 15 14 15 14 14 14 4 4 4 4 5 4 Power . | 1 1 . . . . 1 . . . . . . . 1 . . . Propulsion 1 | 4 2 . . 2 2 2 2 2 1 2 4 1 . . . 3 3 Utility 3 | . 2 5 1 1 1 1 2 3 3 7 5 . . . 2 2 1 Weapon 4 | 1 1 2 4 4 8 10 9 9 8 3 3 3 3 2 . . . Tool/Special . | . . . . . . . . . . . . . . . . . . Unused Backups 33 | . 3 5 2 . 6 . . . 2 . 8 . 2 . . . 5 Power 2 | . . 1 . . . . . . . . . . 1 . . . . Propulsion 7 | . . . . . . . . . . . 3 . 1 . . . 3 Utility 14 | . 3 3 . . 1 . . . . . 5 . . . . . 2 Weapon 10 | . . 1 2 . 5 . . . 2 . . . . . . . . Tool/Special . | . . . . . . . . . . . . . . . . . . Average Slot Usage (%) 72 | . 99 95 76 80 80 81 81 81 76 69 53 26 10 18 39 33 25 Engine 6 | . 14 14 7 6 2 . . . 2 7 5 . . . 2 . . Reactor 1 | . . . . . 3 6 6 6 3 . . . . . . . . Treads 5 | . 10 16 . . . . . . . . . . . . . . . Leg 3 | . 17 . . . . . . . . . . . . 7 9 19 14 Wheel 2 | . . 8 7 . . . . . . . . . . . . . . Flight 7 | . . . 4 17 18 18 18 18 19 21 18 20 7 . . . . Device 10 | . 9 1 20 19 18 18 18 18 15 15 16 6 2 3 12 4 3 Storage 7 | . 14 14 7 6 6 6 6 6 6 7 5 . . . . . . Processor 4 | . . . 4 10 12 12 12 12 13 12 5 . . . . . . Protection 6 | . 4 12 10 6 6 6 6 6 2 . . . . . 4 9 6 Energy Gun 2 | . . 2 7 6 8 12 1 . 1 . . . . . . . . Ballistic Gun 8 | . 28 13 6 4 . . 10 12 6 . . . . . 3 . . Ballistic Cannon 3 | . . 7 . . . . . . 3 2 . . . 2 5 . . Peak Build Rating 84 | 7 9 17 65 74 79 79 81 81 84 75 77 15 15 37 52 46 46 Average Rating 39 | 6 7 11 45 73 76 79 80 81 77 69 66 15 7 15 37 46 35 On Entrance 43 | 6 7 9 17 65 73 79 79 81 81 66 66 15 15 2 34 46 46 Naked Turns 309 | . . . . . . . . . . . . . 179 83 . . 47 Heaviest Build 52 | 15 24 30 44 44 47 47 52 52 52 51 34 1 1 30 46 15 15 Greatest Support 100 | 20 40 40 30 40 40 40 40 40 40 34 34 16 16 60 100 50 50 Greatest Overweight (x) 9 | . 4 1 1 1 1 1 1 1 1 1 . . . . 9 . . Average Overweight (x) . | . . . . 1 . 1 1 1 . . . . . . . . . Largest Inventory Capacity 15 | 8 10 10 15 15 15 15 15 15 15 15 15 5 5 5 5 5 5 Average Capacity 10 | 8 8 10 10 15 15 15 15 15 15 15 14 5 5 5 5 5 5 Most Carried 15 | 7 10 10 10 10 15 15 15 15 15 15 15 4 5 5 5 5 5 Average Carried 9 | 6 7 9 8 9 14 15 14 15 14 14 14 4 4 4 4 5 4 Final Capacity 15 | 8 10 10 15 15 15 15 15 15 15 15 5 5 5 5 5 5 5 Final Carried 15 | 7 10 10 10 10 15 15 15 15 14 15 4 4 5 3 5 5 5 Class Distribution -------------------- 72% | Mutant 7% | Sprinter 6% | Scavenger-Mutant 5% | Scavenger-Skirmisher 3% | Tank Dominant Class ---------------- Mutant | -10/Materials Mutant | -10/Subcaves Mutant | -8/Materials Skirmisher | -7/Factory Scavenger-Skirmisher | -7/Waste Scavenger-Skirmisher | -7/Factory Mutant | -7/Garrison Mutant | -7/Factory Mutant | -7/Garrison Mutant | -7/Factory Sprinter | -6/Factory Sprinter | -6/Waste Mutant | -6/Factory Mutant | -5/Factory Mutant | -4/Factory Mutant | -3/Research Mutant | -3/Testing Resources | -11 -10 -10 -8 -7 -7 -7 -7 -7 -7 -7 -6 -6 -6 -5 -4 -3 -3 ----------- Run | Yrd Mat Sub Mat Fac Was Fac Gar Fac Gar Fac Fac Was Fac Fac Fac Res Tes Matter Collected 3176 | 242 303 663 479 . 70 . 199 . 430 3 . . . 460 327 . . Remotely . | . . . . . . . . . . . . . . . . . . Salvage Created 4011 | 151 513 474 1069 . . . 280 . 522 136 . . . 562 304 . . Parts 252 | 10 34 38 67 . . . 21 . 33 7 . . . 13 29 . . Haulers Intercepted 5 | . 1 . 4 . . . . . . . . . . . . . . Recyclers Shooed 2 | . . . . . . . . . . . . . . 2 . . . Parts Field Recycled . | . . . . . . . . . . . . . . . . . . Retrieved Matter . | . . . . . . . . . . . . . . . . . . Parts Self-Destructed 14 | . . 14 . . . . . . . . . . . . . . . Prevented . | . . . . . . . . . . . . . . . . . . Kills | -11 -10 -10 -8 -7 -7 -7 -7 -7 -7 -7 -6 -6 -6 -5 -4 -3 -3 ------- Run | Yrd Mat Sub Mat Fac Was Fac Gar Fac Gar Fac Fac Was Fac Fac Fac Res Tes Combat Hostiles Destroyed 100 | . 8 16 22 . . . 10 . 16 9 . . . 7 12 . . Melee 3 | . . . . . . . . . . . . . . 3 . . . Guns 46 | . 8 7 15 . . . 4 . 11 . . . . . 1 . . Cannons 24 | . . 7 1 . . . . . 3 9 . . . 2 2 . . AOE 25 | . . 2 6 . . . 6 . 2 . . . . . 9 . . Classes Destroyed 14 | 2 5 2 3 . . . . . 1 1 . . . . . . . Worker 4 | . 2 . . . . . . . . . . . . 2 . . . Builder 1 | . 1 . . . . . . . . . . . . . . . . Tunneler 6 | 3 1 . 1 . . . . . . . . . . 1 . . . Hauler 5 | . 1 . 4 . . . . . . . . . . . . . . Recycler 3 | 1 . . 1 . . . . . . . . . . 1 . . . Operator 1 | . 1 . . . . . . . . . . . . . . . . Watcher 1 | . . . 1 . . . . . . . . . . . . . . Swarmer 34 | . . . 3 . . . 6 . 10 5 . . . 1 9 . . Grunt 34 | . 8 . 16 . . . 4 . 3 . . . . 3 . . . Sentry 9 | . . . 3 . . . . . 2 . . . . 3 1 . . Programmer 3 | . . . . . . . . . 1 . . . . . 2 . . Artisan 1 | . . 1 . . . . . . . . . . . . . . . Subdweller 16 | . . 16 . . . . . . . . . . . . . . . Assembled 4 | . . . . . . . . . . 4 . . . . . . . Best Kill Streak 8 | 2 6 3 8 . . . 6 . 5 6 . . . 3 5 . . Combat Bots Only 7 | . 3 3 7 . . . 6 . 5 6 . . . 3 5 . . Max Kills in Single Turn 6 | 1 1 1 3 . . . 6 . 2 1 . . . 1 5 . . Gunslinging 1 | . . . . . . . . . 1 . . . . . . . . Exploded 6 | . . 1 2 . . . 6 . 2 . . . . . 5 . . Melee 1 | . . . . . . . . . . . . . . 1 . . . Uniques/NPCs Destroyed . | . . . . . . . . . . . . . . . . . . Combat | -11 -10 -10 -8 -7 -7 -7 -7 -7 -7 -7 -6 -6 -6 -5 -4 -3 -3 -------- Run | Yrd Mat Sub Mat Fac Was Fac Gar Fac Gar Fac Fac Was Fac Fac Fac Res Tes Hostile Shots Fired 1270 | . 45 83 91 . . 9 121 . 93 85 46 . 81 147 304 10 155 Missed 477 | . 13 33 27 . . 6 39 . 24 30 26 . 33 58 123 2 63 Damage Taken 13886 | . 472 1107 924 . . 22 1014 . 1282 684 377 20 579 1796 3440 151 2018 Core 4396 | . 92 139 53 . . 6 85 . 102 119 166 20 561 903 842 17 1291 Absorbed by Shields 118 | . . . . . . . 19 . . 35 . . . . 64 . . Ignored by Resistances 83 | . . . . . . . . . . . . . . 71 12 . . Regen/Repaired (Parts) 6 | . . . . . 6 . . . . . . . . . . . . Core Remaining (%) 42 | 100 . 7 90 . . . . . . 55 . . 12 9 26 . . Volleys Fired 317 | 7 39 87 64 . . . 21 . 45 15 . . . 20 19 . . Largest 3 | 2 2 2 2 . . . 2 . 2 2 . . . 3 3 . . Hottest 135 | 40 40 105 99 . . . 66 . 129 96 . . . 128 135 . . Shots Fired 574 | 14 78 153 99 . . . 41 . 90 24 . . . 43 32 . . Gun 396 | 14 78 95 86 . . . 40 . 64 . . . . 5 14 . . Cannon 156 | . . 51 6 . . . . . 24 24 . . . 38 13 . . Launcher 22 | . . 7 7 . . . 1 . 2 . . . . . 5 . . Special . | . . . . . . . . . . . . . . . . . . Kinetic 457 | 14 78 116 45 . . . 40 . 70 24 . . . 43 27 . . Thermal 74 | . . 13 43 . . . . . 18 . . . . . . . . Explosive 22 | . . 7 7 . . . 1 . 2 . . . . . 5 . . Electromagnetic 21 | . . 17 4 . . . . . . . . . . . . . . Robot Hit Streak 23 | 9 11 23 14 . . . 4 . 11 4 . . . 7 6 . . Robot Miss Streak 6 | 2 3 2 3 . . . 4 . 6 5 . . . 3 5 . . Penetration Max 2 | . . . . . . . . . . . . . . 2 . . . Secondary Targets 6 | . 1 . 1 . . . 2 . 2 . . . . . . . . Max Gunslinging Chain 1 | . 1 . 1 . . . 1 . 1 . . . . . . . . Shots Hit Robots 320 | 10 47 78 66 . . . 21 . 33 11 . . . 40 13 . 1 Core Hits 182 | 4 28 28 45 . . . 16 . 24 9 . . . 9 18 . 1 Critical Kills 12 | . . . 1 . . . . . 3 5 . . . 1 2 . . Critical Parts Destroyed 16 | . . . . . . . . . 1 2 . . . 10 3 . . Critical Strikes 37 | . . 1 2 . . . . . 4 7 . . . 18 5 . . Burn 1 | . . . 1 . . . . . . . . . . . . . . Destroy 23 | . . . 1 . . . . . 4 7 . . . 6 5 . . Blast 6 | . . 1 . . . . . . . . . . . 5 . . . Smash 7 | . . . . . . . . . . . . . . 7 . . . Melee Attacks 40 | . . 14 . 1 . . . . . 4 . . . 20 . . 1 Impact 25 | . . . . 1 . . . . . 4 . . . 20 . . . Slashing 14 | . . 14 . . . . . . . . . . . . . . . Piercing 1 | . . . . . . . . . . . . . . . . . 1 Sneak Attacks 4 | . . . . . . . . . . . . . . 4 . . . Combat Hostiles . | . . . . . . . . . . . . . . . . . . Follow-up Attacks . | . . . . . . . . . . . . . . . . . . Damage Inflicted 9668 | 131 606 1747 1982 . . . 869 . 1013 319 . . . 1735 1208 . 58 Guns 4103 | 131 605 668 1187 . . . 558 . 703 . . . . 65 186 . . Cannons 2249 | . . 720 89 . . . . . 95 319 . . . 861 165 . . Explosions 2448 | . . 359 706 . . . 311 . 215 . . . . . 857 . . Melee 788 | . . . . . . . . . . . . . . 747 . . 41 Ramming 80 | . 1 . . . . . . . . . . . . 62 . . 17 Kinetic 5255 | 131 605 1131 553 . . . 558 . 681 319 . . . 926 351 . . Thermal 984 | . . 196 671 . . . . . 117 . . . . . . . . Explosive 2448 | . . 359 706 . . . 311 . 215 . . . . . 857 . . Electromagnetic 113 | . . 61 52 . . . . . . . . . . . . . . Impact 747 | . . . . . . . . . . . . . . 747 . . . Slashing . | . . . . . . . . . . . . . . . . . . Piercing 41 | . . . . . . . . . . . . . . . . . 41 Highest Corruption 16 | . . . 2 . . . . . 5 6 . 5 7 16 2 . 10 Average Corruption 7 | . . . 2 . . . . . 5 5 . 5 5 14 2 . 5 Corruption Purged . | . . . . . . . . . . . . . . . . . . Corruption Blocked . | . . . . . . . . . . . . . . . . . . Effects 57 | . . . 4 . . . . . 16 6 . 1 5 24 . . 1 Message Errors 12 | . . . . . . . . . 2 4 . . 2 4 . . . Matter Fused 16 | . . . 2 . . . . . 5 1 . 1 . 7 . . . Heat Flow Errors 9 | . . . . . . . . . 2 . . . 1 5 . . 1 Energy Discharges 6 | . . . 1 . . . . . 1 . . . 1 3 . . . Parts Rejected 1 | . . . . . . . . . . 1 . . . . . . . Data Loss (minor) 3 | . . . . . . . . . 2 . . . . 1 . . . Data Loss (major) 3 | . . . . . . . . . 1 . . . 1 1 . . . Misfires 3 | . . . . . . . . . 2 . . . . 1 . . . Alerts 1 | . . . . . . . . . 1 . . . . . . . . Misdirections 1 | . . . . . . . . . . . . . . 1 . . . Weapon Failures 2 | . . . 1 . . . . . . . . . . 1 . . . Overload Shots . | . . . . . . . . . . . . . . . . . . Overflow Damage 642 | . . . 53 . . . . . 27 . . . . 549 13 . . Projectiles 32 | . . . . . . . . . . . . . . 32 . . . Explosions 93 | . . . 53 . . . . . 27 . . . . . 13 . . Melee 517 | . . . . . . . . . . . . . . 517 . . . Knockbacks 15 | . . 4 2 . . . . . . 3 . . . 5 . . 1 Impact 3 | . . . . . . . . . . . . . . 2 . . 1 Kinetic 11 | . . 4 1 . . . . . . 3 . . . 3 . . . Secondary 1 | . . . 1 . . . . . . . . . . . . . . Self-Inflicted Damage 44 | . . 9 25 . . . . . . . . . . 3 . . 7 Shots 2 | . . 1 1 . . . . . . . . . . . . . . Rammed 10 | . 1 . . . . . . . . . . . 1 3 . . 5 Targets Rammed 25 | . 1 . . . . . . . . . . . 1 18 . . 5 Kicked 15 | . . . . . . . . . . . . . . 15 . . . Crushed . | . . . . . . . . . . . . . . . . . . Highest Temperature 435 | . 58 48 65 . 14 . 39 . 435 36 1 . 118 322 36 . 174 Average Temperature 80 | . 22 18 21 . 7 . 23 . 211 16 1 . 51 133 16 . 87 Received Heat Transfer 3082 | . 228 228 513 . . 6 192 . 219 52 54 . 81 971 283 39 216 Effects 4 | . . . . . . . . . 2 . . . . 2 . . . Energy Bleed 1 | . . . . . . . . . . . . . . 1 . . . Matter Decay 1 | . . . . . . . . . 1 . . . . . . . . Damage (minor) 2 | . . . . . . . . . 1 . . . . 1 . . . Siege Activations . | . . . . . . . . . . . . . . . . . . Martial Activations . | . . . . . . . . . . . . . . . . . . Shielding Activations . | . . . . . . . . . . . . . . . . . . Robots Disrupted . | . . . . . . . . . . . . . . . . . . Combat Hostiles . | . . . . . . . . . . . . . . . . . . Robots Corrupted 4 | . . . . . . . . . . . . . . 4 . . . Combat Hostiles 2 | . . . . . . . . . . . . . . 2 . . . Parts Fried 5 | . . . . . . . . . . . . . . 5 . . . Impact Corruptions 15 | . . . . . . . . . . . . . . 15 . . . Robots Melted . | . . . . . . . . . . . . . . . . . . Combat Hostiles . | . . . . . . . . . . . . . . . . . . Parts Melted 5 | . . 3 1 . . . . . 1 . . . . . . . . Heat Transferred 1560 | . . 260 1115 . . . . . 185 . . . . . . . . Parts Sabotaged . | . . . . . . . . . . . . . . . . . . Parts Stolen . | . . . . . . . . . . . . . . . . . . Parts Stripped . | . . . . . . . . . . . . . . . . . . Power Chain Reactions . | . . . . . . . . . . . . . . . . . . Alert | -11 -10 -10 -8 -7 -7 -7 -7 -7 -7 -7 -6 -6 -6 -5 -4 -3 -3 ------- Run | Yrd Mat Sub Mat Fac Was Fac Gar Fac Gar Fac Fac Was Fac Fac Fac Res Tes Maximum Alert Level 4 | . . . 1 . . . 4 3 4 2 1 . . . 2 1 . Low Security (%) 60 | 100 100 . 38 100 100 100 15 . . . 42 100 100 100 90 51 100 Level 1 10 | . . . 61 . . . . . . . 57 . . . 4 48 . Level 2 10 | . . . . . . . 2 55 35 100 . . . . 5 . . Level 3 8 | . . . . . . . 31 44 28 . . . . . . . . Level 4 10 | . . . . . . . 49 . 35 . . . . . . . . Level 5 . | . . . . . . . . . . . . . . . . . . High Security . | . . . . . . . . . . . . . . . . . . Max Security . | . . . . . . . . . . . . . . . . . . Peak Influence 1384 | 10 87 . 387 175 23 130 1384 726 1252 682 304 42 165 175 422 211 101 Initial 726 | . . . . 175 23 . 54 726 466 633 304 42 22 58 63 211 96 Average 328 | 2 22 . 190 124 2 72 986 696 882 573 209 39 100 124 75 194 47 Influence Increases 5643 | 20 286 . 722 1 . 260 1470 . 1001 289 66 . 248 369 821 . 90 Destroy 0b10 Robot/C 2440 | . 160 . 440 . . 80 680 . 600 100 . . . 140 240 . . Destroy 0b10 Robot/NC 105 | 20 30 . 35 . . . . . . . . . . 20 . . . Destroy Leader 332 | . 52 . 90 . . 20 40 . 40 20 . . . 30 40 . . Allied During Kill 998 | . . . . . . 100 653 . 245 . . . . . . . . Successful Hack 99 | . 13 . 28 . . 24 14 . . 8 6 . 3 . 3 . . Select Force Hacks 100 | . . . . . . . . . . . . . 50 50 . . . Disable Machine 75 | . . . 60 . . . . . . 15 . . . . . . . Anti-Garrison Action 50 | . . . . . . . . . 50 . . . . . . . . Destroy Structure 289 | . 1 . 39 1 . 36 68 . 51 11 . . . 24 58 . . Partial Spotted 105 | . . . . . . . 15 . . 15 . . 45 15 . . 15 Lose Combat Pursuer 1050 | . 30 . 30 . . . . . 15 120 60 . 150 90 480 . 75 Influence Decreases 3027 | 20 217 35 335 110 23 182 140 60 260 300 248 10 150 296 480 40 121 Time Decay 2088 | 20 217 35 285 110 23 142 . 60 . 140 198 10 150 246 302 40 110 Lost Part 419 | . . . 50 . . . 10 . 60 10 50 . . 50 178 . 11 Lost Ally 370 | . . . . . . 40 130 . 200 . . . . . . . . Purge Threat 150 | . . . . . . . . . . 150 . . . . . . . Squads Dispatched 27 | . 2 . 4 . . 1 . . . 3 1 . 3 8 2 . 3 Investigation 10 | . . . 2 . . 1 . . . 1 . . 3 3 . . . Extermination 1 | . . . . . . . . . . . . . . . 1 . . Reinforcement 14 | . 2 . 2 . . . . . . 2 1 . . 3 1 . 3 Assault 1 | . . . . . . . . . . . . . . 1 . . . Garrison 1 | . . . . . . . . . . . . . . 1 . . . Intercept . | . . . . . . . . . . . . . . . . . . Searches Triggered . | . . . . . . . . . . . . . . . . . . Construction Impeded 4 | . . . 1 . . . . . . 1 . . . 1 1 . . Haulers Reinforced 1 | . . . . . . . . . . 1 . . . . . . . Active Scanning Responses . | . . . . . . . . . . . . . . . . . . Cargo Convoy Interrupts . | . . . . . . . . . . . . . . . . . . Stealth | -11 -10 -10 -8 -7 -7 -7 -7 -7 -7 -7 -6 -6 -6 -5 -4 -3 -3 --------- Run | Yrd Mat Sub Mat Fac Was Fac Gar Fac Gar Fac Fac Was Fac Fac Fac Res Tes Distress Signals 13 | . 2 . 3 . . . . . . . 3 . 1 3 . . 1 Communications Jammed . | . . . . . . . . . . . . . . . . . . Distress Signals . | . . . . . . . . . . . . . . . . . . Times Spotted 288 | . 17 17 27 . . 4 33 . 28 27 18 4 19 25 48 4 17 Peak Tracking Total 17 | . 4 3 6 . . 3 7 . 5 5 15 4 8 9 17 4 13 Tactical Retreats 26 | . 1 . 1 . . . . . 1 4 3 . 5 4 6 . 1 Traps | -11 -10 -10 -8 -7 -7 -7 -7 -7 -7 -7 -6 -6 -6 -5 -4 -3 -3 ------- Run | Yrd Mat Sub Mat Fac Was Fac Gar Fac Gar Fac Fac Was Fac Fac Fac Res Tes Traps Triggered 29 | . 3 . 1 1 . . 5 . 6 3 1 . 4 2 2 . 1 Indirectly . | . . . . . . . . . . . . . . . . . . Trap Hack Attempts . | . . . . . . . . . . . . . . . . . . Triggered . | . . . . . . . . . . . . . . . . . . Disarmed . | . . . . . . . . . . . . . . . . . . Reprogrammed . | . . . . . . . . . . . . . . . . . . Reused . | . . . . . . . . . . . . . . . . . . Traps Extracted . | . . . . . . . . . . . . . . . . . . Installed . | . . . . . . . . . . . . . . . . . . Triggered . | . . . . . . . . . . . . . . . . . . Machines | -11 -10 -10 -8 -7 -7 -7 -7 -7 -7 -7 -6 -6 -6 -5 -4 -3 -3 ---------- Run | Yrd Mat Sub Mat Fac Was Fac Gar Fac Gar Fac Fac Was Fac Fac Fac Res Tes Machines Disabled 7 | . . 1 4 . . . . . 1 1 . . . . . . . Max in Single Turn 3 | . . 1 3 . . . . . 1 1 . . . . . . . Garrison Access 4 | . . . 1 . . . . . . . . . 1 1 1 . . Garrison Relay 1 | . . . . . . . . . 1 . . . . . . . . Machines Repaired . | . . . . . . . . . . . . . . . . . . Machines Dismantled . | . . . . . . . . . . . . . . . . . . Machines Sabotaged . | . . . . . . . . . . . . . . . . . . Overloaded Fab Kills 12 | . . . . . . . . . . . . . 8 4 . . . Hacking | -11 -10 -10 -8 -7 -7 -7 -7 -7 -7 -7 -6 -6 -6 -5 -4 -3 -3 --------- Run | Yrd Mat Sub Mat Fac Was Fac Gar Fac Gar Fac Fac Was Fac Fac Fac Res Tes Machines Accessed 35 | . 2 2 6 1 . 5 1 1 1 3 2 . 4 5 1 . 1 Terminals 20 | . 2 . 5 . . 3 1 . 1 2 1 . 1 3 . . 1 Fabricators 3 | . . . . . . . . . . . 1 . 1 1 . . . Repair Stations 1 | . . . . . . . . . . . . . . 1 . . . Recycling Units 1 | . . . . . . . . . . . . . 1 . . . . Scanalyzers . | . . . . . . . . . . . . . . . . . . Garrison Access 8 | . . . 1 1 . 2 . 1 . 1 . . 1 . 1 . . Total Hacks 93 | . 5 13 17 2 . 13 3 1 1 8 5 . 13 8 3 . 1 Successful 51 | . 4 13 11 . . 7 1 1 1 4 2 . 3 1 3 . . Failed 42 | . 1 . 6 2 . 6 2 . . 4 3 . 10 7 . . 1 Catastrophic 9 | . . . . 1 . 1 1 . . 2 . . 2 1 . . 1 Database Lockouts . | . . . . . . . . . . . . . . . . . . Manual 61 | . 4 . 16 . . 10 . . . 8 3 . 9 8 2 . 1 Terminals 55 | . 5 . 16 . . 10 3 . 1 5 3 . 6 5 . . 1 Fabricators 6 | . . . . . . . . . . . 2 . 3 1 . . . Repair Stations 2 | . . . . . . . . . . . . . . 2 . . . Recycling Units 3 | . . . . . . . . . . . . . 3 . . . . Scanalyzers . | . . . . . . . . . . . . . . . . . . Garrison Access 14 | . . . 1 2 . 3 . 1 . 3 . . 1 . 3 . . Terminal Hacks 20 | . 1 13 1 . . 1 1 . 1 1 1 . . . . . . Record 12 | . . 12 . . . . . . . . . . . . . . . Open Door 1 | . . . . . . . . . 1 . . . . . . . . Terminal Index 3 | . . . 1 . . 1 . . . . 1 . . . . . . Unreport Threat 1 | . . . . . . . . . . 1 . . . . . . . Locate Traps 1 | . 1 . . . . . . . . . . . . . . . . Patrol Navigation 1 | . . . . . . . 1 . . . . . . . . . . Derelict Proto ID Bank 1 | . . 1 . . . . . . . . . . . . . . . Fabricator Hacks 1 | . . . . . . . . . . . 1 . . . . . . Network Status 1 | . . . . . . . . . . . 1 . . . . . . Repair Station Hacks . | . . . . . . . . . . . . . . . . . . Recycling Unit Hacks . | . . . . . . . . . . . . . . . . . . Scanalyzer . | . . . . . . . . . . . . . . . . . . Garrison Access Hacks 5 | . . . 1 . . 1 . 1 . . . . 1 . 1 . . Unlock Access 2 | . . . . . . 1 . 1 . . . . . . . . . Seal Access 3 | . . . 1 . . . . . . . . . 1 . 1 . . Unauthorized Hacks 25 | . 3 . 9 . . 5 . . . 3 . . 2 1 2 . . Terminals 18 | . 3 . 9 . . 5 . . . . . . 1 . . . . Track 1 | . . . . . . . . . . . . . 1 . . . . Botnet 10 | . 2 . 5 . . 3 . . . . . . . . . . . Operators 1 | . . . 1 . . . . . . . . . . . . . . Skim 6 | . 1 . 3 . . 2 . . . . . . . . . . . Fabricators 2 | . . . . . . . . . . . . . 1 1 . . . Overload 2 | . . . . . . . . . . . . . 1 1 . . . Repair Stations . | . . . . . . . . . . . . . . . . . . Recycling Units . | . . . . . . . . . . . . . . . . . . Scanalyzers . | . . . . . . . . . . . . . . . . . . Garrison Access 5 | . . . . . . . . . . 3 . . . . 2 . . Broadcast 2 | . . . . . . . . . . 1 . . . . 1 . . Decoy 1 | . . . . . . . . . . 1 . . . . . . . Watchers 2 | . . . . . . . . . . 1 . . . . 1 . . Data Cores Recovered 1 | . 1 . . . . . . . . . . . . . . . . Used 1 | . 1 . . . . . . . . . . . . . . . . Hacking Detections 27 | . 2 . 4 1 . 5 1 . . 3 2 . 3 4 1 . 1 Full Trace Events 8 | . . . 2 . . 1 . . . 1 . . 2 2 . . . Feedback Events 1 | . . . . . . . . . . 1 . . . . . . . Corruption 1 | . . . . . . . . . . 1 . . . . . . . Feedback Blocked . | . . . . . . . . . . . . . . . . . . Robot Schematics Acquired . | . . . . . . . . . . . . . . . . . . Robots Built . | . . . . . . . . . . . . . . . . . . Authchips . | . . . . . . . . . . . . . . . . . . Time . | . . . . . . . . . . . . . . . . . . Total Robot Build Rating . | . . . . . . . . . . . . . . . . . . Part Schematics Acquired . | . . . . . . . . . . . . . . . . . . Parts Built . | . . . . . . . . . . . . . . . . . . Authchips . | . . . . . . . . . . . . . . . . . . Time . | . . . . . . . . . . . . . . . . . . Total Part Build Rating . | . . . . . . . . . . . . . . . . . . Parts Repaired . | . . . . . . . . . . . . . . . . . . Time . | . . . . . . . . . . . . . . . . . . Parts Recycled . | . . . . . . . . . . . . . . . . . . Recycled Matter . | . . . . . . . . . . . . . . . . . . Retrieved Matter . | . . . . . . . . . . . . . . . . . . Retrieved Components . | . . . . . . . . . . . . . . . . . . Parts Scanalyzed . | . . . . . . . . . . . . . . . . . . Part Schematics Acquired . | . . . . . . . . . . . . . . . . . . Parts Damaged . | . . . . . . . . . . . . . . . . . . Bothacking | -11 -10 -10 -8 -7 -7 -7 -7 -7 -7 -7 -6 -6 -6 -5 -4 -3 -3 ------------ Run | Yrd Mat Sub Mat Fac Was Fac Gar Fac Gar Fac Fac Was Fac Fac Fac Res Tes Used RIF Installer 1 | . . . . . . . . . 1 . . . . . . . . Robots Hacked . | . . . . . . . . . . . . . . . . . . Non-combat . | . . . . . . . . . . . . . . . . . . Combat . | . . . . . . . . . . . . . . . . . . Robot Hacks Applied . | . . . . . . . . . . . . . . . . . . Relay Couplers Released 7 | . . . . . . . . . 6 . . . . 1 . . . Machine Destruction 4 | . . . . . . . . . 3 . . . . 1 . . . Programmers 3 | . . . . . . . . . 3 . . . . . . . . Fabnet Peak Effective % . | . . . . . . . . . . . . . . . . . . Robots Rewired 6 | . . . . . . . 3 . 3 . . . . . . . . Allies Hacked 1 | . . . . . . . . . 1 . . . . . . . . Hacks Repelled . | . . . . . . . . . . . . . . . . . . Allies | -11 -10 -10 -8 -7 -7 -7 -7 -7 -7 -7 -6 -6 -6 -5 -4 -3 -3 -------- Run | Yrd Mat Sub Mat Fac Was Fac Gar Fac Gar Fac Fac Was Fac Fac Fac Res Tes Total Allies 27 | . . . . . 20 . 3 . 4 . . . . . . . . Largest Group 20 | . . . . . 20 20 16 9 9 . . . . . . . . Highest-Rated Group 534 | . . . . . 534 534 461 216 216 . . . . . . . . Highest-Rated Ally 35 | . . . . . 35 35 35 31 31 . . . . . . . . Total Orders . | . . . . . . . . . . . . . . . . . . Ally Attacks 228 | . . . . . . 38 113 . 77 . . . . . . . . Total Damage 4325 | . . . . . . 631 2142 . 1552 . . . . . . . . Kills 46 | . . . . . . 4 27 . 15 . . . . . . . . Allies Corrupted . | . . . . . . . . . . . . . . . . . . Allies Melted . | . . . . . . . . . . . . . . . . . . Intel | -11 -10 -10 -8 -7 -7 -7 -7 -7 -7 -7 -6 -6 -6 -5 -4 -3 -3 ------- Run | Yrd Mat Sub Mat Fac Was Fac Gar Fac Gar Fac Fac Was Fac Fac Fac Res Tes Active Infowar (turns) 5740 | 4 606 355 732 221 301 328 832 134 926 291 414 27 117 101 351 . . Optics 3847 | . . . 432 221 301 328 832 134 926 291 382 . . . . . . Sensors 1007 | . . . 151 221 301 328 6 . . . . . . . . . . Structural 4684 | . . . 732 221 301 328 832 134 850 287 414 27 117 101 340 . . Seismic 965 | 4 606 355 . . . . . . . . . . . . . . . ECM 11 | . . . . . . . . . . . . . . . 11 . . Robot Analysis Total . | . . . . . . . . . . . . . . . . . . Derelict Logs Recovered 1 | . . 1 . . . . . . . . . . . . . . . Drone Launches . | . . . . . . . . . . . . . . . . . . Drone Recoveries . | . . . . . . . . . . . . . . . . . . Exploration | -11 -10 -10 -8 -7 -7 -7 -7 -7 -7 -7 -6 -6 -6 -5 -4 -3 -3 ------------- Run | Yrd Mat Sub Mat Fac Was Fac Gar Fac Gar Fac Fac Was Fac Fac Fac Res Tes Turns Passed 9891 | 66 865 2592 732 221 301 328 832 134 926 291 414 27 307 539 948 83 285 Spaces Moved 7817 | 12 451 1594 570 224 310 233 640 113 573 362 530 88 642 554 681 70 170 Core 971 | . 1 . . . . . . . . . . . 315 461 120 . 74 Treads 949 | . 152 797 . . . . . . . . . . . . . . . Legs 912 | 12 298 . . . . . . . . . . . . 93 343 70 96 Wheels 996 | . . 797 199 . . . . . . . . . . . . . . Hover . | . . . . . . . . . . . . . . . . . . Flight 3989 | . . . 371 224 310 233 640 113 573 362 530 88 327 . 218 . . Fastest Speed 30 | 120 120 95 80 90 30 90 90 90 30 30 30 30 30 50 34 120 50 Average Speed 91 | 120 133 138 88 90 77 90 90 90 84 47 30 30 39 61 123 120 89 Slowest Speed 500 | 120 250 240 107 90 90 90 90 90 90 90 30 30 50 120 500 120 120 Overloaded Moves . | . . . . . . . . . . . . . . . . . . Propulsion Burnouts . | . . . . . . . . . . . . . . . . . . Robots Hopped 19 | . . . . . . . . . . 1 5 2 . . 11 . . Cave-ins Triggered 1 | . . . . . . . . . 1 . . . . . . . . Exploration Rate (%) 34 | 2 40 85 52 6 96 7 82 5 59 16 18 68 28 17 20 2 22 Regions Visited 17 Branch Regions 2 Pre-discovered Areas 1 | . . 1 . . . . . . . . . . . . . . . Known Exits Taken 2 | . . . . . . 1 . 1 . . . . . . . . . Unknown Exits Taken 9 | 1 1 1 1 . . . . . . 1 . . 1 1 1 1 . Scrap Searched 4 | . . 4 . . . . . . . . . . . . . . . Spaces Dug 13 | . . . . 1 . . . . 5 6 . . . 1 . . . Terrain Destroyed 225 | . . 54 42 1 . . 19 . 38 13 . . . 14 44 . . Melee 6 | . . . . 1 . . . . . 4 . . . 1 . . . Projectile 37 | . . 1 . . . . 1 . 9 9 . . . 13 4 . . AOE 182 | . . 53 42 . . . 18 . 29 . . . . . 40 . . Terrain Rammed . | . . . . . . . . . . . . . . . . . . Walls Destroyed . | . . . . . . . . . . . . . . . . . . Machines Disabled . | . . . . . . . . . . . . . . . . . . Actions | -11 -10 -10 -8 -7 -7 -7 -7 -7 -7 -7 -6 -6 -6 -5 -4 -3 -3 --------- Run | Yrd Mat Sub Mat Fac Was Fac Gar Fac Gar Fac Fac Was Fac Fac Fac Res Tes Total 9872 | 49 635 1798 710 241 375 351 852 145 929 451 782 85 693 664 742 69 301 Wait 1177 | 29 122 52 23 10 43 119 91 33 182 17 244 . 44 35 13 . 120 Move 7763 | 11 450 1593 569 224 309 232 639 112 571 359 520 83 641 553 658 69 170 Hop 19 | . . . . . . . . . . 1 5 2 . . 11 . . Pick Up 79 | 1 9 11 16 2 12 . 2 . 5 4 3 . 4 2 7 . 1 Fast Attach 47 | 1 3 6 6 . . . . . 1 2 1 . . 10 15 . 2 Attach 44 | . 2 5 8 2 . . 1 . 4 7 3 . . 5 7 . . Detach 16 | . . 1 2 . 1 . . . 2 6 1 . . 1 2 . . Swap 38 | . 2 13 8 2 1 . 6 . 3 1 . . . . 2 . . Drop 70 | . 7 16 13 . 9 . 1 . 7 4 5 . 3 . 3 . 2 Fire 317 | 7 39 87 64 . . . 21 . 45 15 . . . 20 19 . . Melee 40 | . . 14 . 1 . . . . . 4 . . . 20 . . 1 Ram 9 | . . . . . . . . . . . . . 1 3 . . 5 Kick 15 | . . . . . . . . . . . . . . 15 . . . Crush 1 | . 1 . . . . . . . . . . . . . . . . Escape Stasis 202 | . . . . . . . 77 . 90 30 . . . . 5 . . Rewire 34 | . . . . . . . 14 . 19 1 . . . . . . . Trap . | . . . . . . . . . . . . . . . . . . Miscellaneous 1 | . . . 1 . . . . . . . . . . . . . . Route ------- -11/Scrapyard -10/Materials (discovered 2 exits: [*Mat] / *Sub) -10/Subcaves -8/Materials (discovered 2 exits: *Fac x2) -7/Factory -7/Waste -7/Factory -7/Garrison (discovered 4 exits: *Fac x4) -7/Factory -7/Garrison (discovered 3 exits: *Fac x3) -7/Factory (discovered 2 exits: *Fac / *Low) -6/Factory -6/Waste -6/Factory (discovered 2 exits: *Fac / [*Low]) -5/Factory -4/Factory (discovered 2 exits: [*Res] / [*Arm]) -3/Research -3/Testing History --------- Turn | Location | Event 17 | -11/Scrapyard | Discovered new exit (range 2) 67 | -11/Scrapyard | Entered Materials 312 | -10/Materials | Build established: Mutant 572 | -10/Materials | Discovered new exit (range 6) 666 | -10/Materials | Discovered new exit (range 6) 932 | -10/Materials | Entered Subcaves 933 | -10/Subcaves | Approached by a straggling Scientist 1060 | -10/Subcaves | Shifting Twisted Machinery released Battle Rifle 1063 | -10/Subcaves | Shifting Twisted Machinery released Flamer 1325 | -10/Subcaves | Shifting Twisted Machinery released Sub. Beam Cannon 1411 | -10/Subcaves | Shifting Twisted Machinery released Battle Cannon 1567 | -10/Subcaves | Ambushed by angry Subdweller bent on revenge 1709 | -10/Subcaves | Shifting Twisted Machinery released Sub. Monowheel 1711 | -10/Subcaves | Shifting Twisted Machinery released Sub. Optics 1858 | -10/Subcaves | Learned Materials garrison access intel 2092 | -10/Subcaves | Core integrity fell below 50% 2557 | -10/Subcaves | Discovered new exit (range 13) 2657 | -10/Subcaves | A swath of the cavern ceiling suddenly collapsed 2777 | -10/Subcaves | A swath of the cavern ceiling suddenly collapsed 2917 | -10/Subcaves | Core integrity fell below 20% 3200 | -10/Subcaves | Visited Clippyterm 3204 | -10/Subcaves | Learned location of Section 7 (-2) 3258 | -10/Subcaves | Disturbed a concealed Subdweller 3312 | -10/Subcaves | Visited 4L-MR0's lab 3328 | -10/Subcaves | Found Flightbrick 3524 | -10/Subcaves | Entered Materials 3524 | -8/Materials | Evolved 4 slots: Propulsion x2, Utility x2 3525 | -8/Materials | Loaded intel: 1 garrison access location 3823 | -8/Materials | Attached Flightbrick, gained temporary slots: Utility x3 3845 | -8/Materials | Discovered new exit (range 11) 4174 | -8/Materials | Destroyed 7 combat bots 4234 | -8/Materials | Discovered new exit (range 14) 4256 | -8/Materials | Entered Factory 4256 | -7/Factory | Evolved 2 slots: Propulsion x2 4477 | -7/Factory | Sucked down chute 4477 | -7/Factory | Entered Waste 4478 | -7/Waste | Joined by Warlord forces that had cleared the area 4483 | -7/Waste | Found Imp. Powered Armor 4658 | -7/Waste | Discovered new exit (range 13) 4731 | -7/Waste | Identified exit to Factory 4778 | -7/Waste | Entered Factory 4778 | -7/Factory | Accompanied by 20 allies 4891 | -7/Factory | Build established: Scavenger-Skirmisher 5016 | -7/Factory | Lost 3 allies 5072 | -7/Factory | Identified exit to Garrison 5106 | -7/Factory | Entered Garrison 5106 | -7/Garrison | Accompanied by 16 allies 5134 | -7/Garrison | Triggered checkpoint 5224 | -7/Garrison | Triggered checkpoint 5224 | -7/Garrison | Triggered checkpoint 5236 | -7/Garrison | Triggered checkpoint 5264 | -7/Garrison | Triggered checkpoint 5293 | -7/Garrison | Triggered checkpoint 5331 | -7/Garrison | Lost 6 allies 5350 | -7/Garrison | Discovered new exit (range 12) 5401 | -7/Garrison | Build established: Mutant 5476 | -7/Garrison | Triggered checkpoint 5528 | -7/Garrison | Triggered checkpoint 5544 | -7/Garrison | Discovered new exit (range 5) 5550 | -7/Garrison | Identified exit to Factory 5588 | -7/Garrison | Triggered checkpoint 5700 | -7/Garrison | Triggered checkpoint 5727 | -7/Garrison | Discovered exit to Factory (range 17) 5860 | -7/Garrison | Discovered exit to Factory (range 11) 5938 | -7/Garrison | Entered Factory 5938 | -7/Factory | Accompanied by 9 allies 6038 | -7/Factory | Identified exit to Garrison 6072 | -7/Factory | Entered Garrison 6072 | -7/Garrison | Accompanied by 9 allies 6390 | -7/Garrison | Triggered checkpoint 6424 | -7/Garrison | Triggered checkpoint 6463 | -7/Garrison | P-70 Sage assimilated allied YF-M91(b) 6470 | -7/Garrison | Triggered checkpoint 6500 | -7/Garrison | Lost 7 allies 6529 | -7/Garrison | Discovered new exit (range 7) 6541 | -7/Garrison | Crushed by falling debris 6562 | -7/Garrison | Identified exit to Factory 6572 | -7/Garrison | Lost 4 parts (1p1n2w) 6592 | -7/Garrison | Discovered exit to Factory (range 13) 6593 | -7/Garrison | Triggered checkpoint 6677 | -7/Garrison | Rescued a captive Derelict 6692 | -7/Garrison | Triggered checkpoint 6730 | -7/Garrison | Garrison Relay disabled 6811 | -7/Garrison | Discovered exit to Factory (range 10) 6870 | -7/Garrison | Triggered checkpoint 6890 | -7/Garrison | Installed Relay Interface Framework 6938 | -7/Garrison | Lost 3 allies 6998 | -7/Garrison | Entered Factory 7046 | -7/Factory | Assembled infested ambush trap array 7149 | -7/Factory | Discovered new exit (range 5) 7154 | -7/Factory | Identified exit to Lower Caves 7287 | -7/Factory | Discovered new exit (range 8) 7289 | -7/Factory | Entered another Factory area 7289 | -6/Factory | Evolved 2 slots: Weapon x2 7518 | -6/Factory | Build established: Sprinter 7703 | -6/Factory | Sucked down chute 7703 | -6/Factory | Entered Waste 7710 | -6/Waste | Spotted C-40 Crusher 7712 | -6/Waste | Spotted C-40 Crusher 7712 | -6/Waste | Spotted C-40 Crusher 7715 | -6/Waste | Spotted C-40 Crusher 7718 | -6/Waste | EMP discharged 7719 | -6/Waste | Spotted C-40 Crusher 7721 | -6/Waste | Spotted C-40 Crusher 7726 | -6/Waste | Discovered new exit (range 12) 7730 | -6/Waste | Lost 5 parts (1p2n2u) 7730 | -6/Waste | Entered Factory 7780 | -6/Factory | Discovered new exit (range 15) 7793 | -6/Factory | Discovered new exit (range 16) 7900 | -6/Factory | Core integrity fell below 50% 8029 | -6/Factory | Core integrity fell below 20% 8037 | -6/Factory | Entered another Factory area 8037 | -5/Factory | Evolved 2 slots: Utility x2 8045 | -5/Factory | Spotted B-75 Beast 8099 | -5/Factory | Core integrity fell below 50% 8103 | -5/Factory | System corruption reached 10% 8135 | -5/Factory | Build established: Mutant 8376 | -5/Factory | Core integrity fell below 20% 8487 | -5/Factory | Garrison activated, responded to threat 8497 | -5/Factory | Discovered new exit (range 12) 8576 | -5/Factory | Entered another Factory area 8576 | -4/Factory | Evolved 2 slots: Weapon x2 8900 | -4/Factory | Lost 4 parts (1u3w) 9091 | -4/Factory | Lost 5 parts (2n2u1w) 9169 | -4/Factory | Lost 4 parts (1p1n2u) 9356 | -4/Factory | Lost 4 parts (1u3w) 9377 | -4/Factory | Core integrity fell below 50% 9377 | -4/Factory | Discovered new exit (range 16) 9502 | -4/Factory | Discovered new exit (range 15) 9524 | -4/Factory | Entered Research 9524 | -3/Research | Evolved 2 slots: Power x1, Utility x1 9592 | -3/Research | Discovered new exit (range 13) 9607 | -3/Research | Entered Testing 9853 | -3/Testing | Lost 7 parts (4n3u) 9863 | -3/Testing | Scanned by Researcher 9873 | -3/Testing | Spotted Striker 9874 | -3/Testing | Spotted Striker 9878 | -3/Testing | Core integrity fell below 50% 9879 | -3/Testing | Spotted Alpha 7 9885 | -3/Testing | Stole the SGEMP Prototype 9887 | -3/Testing | System corruption reached 10% 9890 | -3/Testing | Core integrity fell below 20% 9892 | -3/Testing | Destroyed by Alpha 7 with Multirail Last Messages --------------- 09879_ Striker knocked back. 09880_ Slug penetrates Reinforced Barrier. 09880_ Striker suffers critical hit (Destroy). 09880_ Striker destroyed. 09880_ Penetrated by Slug. 09883_ Dropped Adv. Transmission Jammer. 09883_ Penetrated by Slug. 09883_ Slug penetrates Machine. 09884_ Dropped Imp. Medium Armor Plating. 09884_ Machine disabled. 09885_ Acquired SGEMP Prototype. 09886_ Penetrated by Slug. 09888_ Acquired Prototype Piercing Weapon. 09888_ Identified Plasma Lance. 09889_ Slug penetrates Reinforced Barrier. 09889_ Penetrated by Slug. 09889_ Slug penetrates Wall. 09890_ Held in stasis. 09890_ C-55 Analyst is analyzing... 09892_ Penetrated by Slug. Map ----- +----------------------------------------------------+ | ??????????????????????????# # """ | | ??????????????????????????+ + | | ??????????????????????????# # """ | | ??????????????????????????# # """ [ | | ??????????????????????????# #? """ | | ??????????????????????????# ####? ? | | ??????????????????????????# #?????###### | | ??????????????????????????# #??????????? | | ??????????????????????????# #??????????? | | ??????????????????????????# #??????????? | | ??????????????????????????# #??????????? | | ??????????????????????????# #??????????? | | ?????????????????????????## ###????????? | | ?????????????????????????# ###+###### | | ?????????????????????????# T" | | ?????????????????????????# "" | | ?????????????????????????# ########## | | ?????????????????????????## ##????????? | | ??????????????????????????# #?????????? | | ??????????????????????????# #?????????? | | ???????########???????????# #?????????? | | ???????#" """"#?????#####?# #?????????? | | ???????#"" """#?????# #?# #?????????? | | ???????#""!! "#####?# ### ##????????? | | ???????#"" #; ;### !## #????????? | | ???????#"" K@! p o[%%=T" #????????? | | ???????#" /%p]p% c !== "" #????????? | | ???????# 7##%#####+### #????????? | | ???????#""" ####??# ?######????????? | | ???????##### #?????# ""???????????????? | | ???????????####?????# "" ??????????????? | | ????????????????????# T" ??????????????? | | ????????????????????# "" #?????????????? | | ????????????????????# "" #?????????????? | | ????????????????????# ?? #?????????????? | | ????????????????????# ???#?????????????? | | ????????????????????? ?????????????????? | | ???????????????????????????????????????? | | ???????????????????????????????????????? | | | | | | | | | | | | | | | | | | | | | | | +----------------------------------------------------+ Best States ------------- Heat Dissipation 62 Energy Generation 25 Energy Capacity 325 Matter Stores 300 Matter Capacity 300 Sight Range 20 Robot Scan Range 15 Terrain Scan Density 10 Additional Mass Support 6 Armor Coverage 450 Resistance: TH 25 Phase Shifting 10 Evasion (%) 74 Recoil Reduction 2 Item Schematics ----------------- None Robot Schematics ------------------ None Fabricated ------------ Nothing Repaired ---------- Nothing Alien Tech Used ----------------- None Achievements -------------- Infiltrator Streaker Challenges ------------ None Game ------ Seed FortressMiniCoupler Manual? 0 Play Time 01:54:18 Cumulative 293.3 hours Start 2024.11.10 @ 06:21:47 End 2024.11.10 @ 10:54:18 Sessions 1 Manual Loads 0 Difficulty Rogue Special Mode None Game No. 186 Rogue 169 Adventurer 11 Explorer 6 Win Type - Total 4 Types 4/0/0/0/0/0/0/0/0 Lore% 42 Gallery% 61 Achievement% 51 Wizard Run 0 Options --------- Layout 0 ASCII 0 Keyboard 0 Movement Numpad Keybinds 0 Fullscreen 2 Font 24/Smallcaps Map View 113x50 Zoom Use 0% Tactical HUD 1 Map Filters NONE Filters NONE Steam 1 RUN: 0aee16e5-40ec-4aa4-bc23-7344a5aa7c4f